[Event "DVM U12 2021-22"]
[Site "Naumburg"]
[Date "2022.03.26"]
[Round "3"]
[White "Lu, Yunong Elias"]
[Black "Zhang, Yibo"]
[Result "1-0"]
[ECO "C55"]
[WhiteElo "1677"]
[BlackElo "1397"]
[Annotator "NA"]
[PlyCount "55"]
[EventDate "2022.03.25"]
[EventType "team-tourn"]
[EventRounds "7"]
[EventCountry "GER"]
[SourceTitle "playchess.com"]
[Source "ChessBase"]
[SourceQuality "1"]
[TimeControl "40/5400+30:1800+30"]

1. e4 {[%emt 0:00:06]} e5 {[%emt 0:00:03]} 2. Nf3 {[%emt 0:00:11]} Nc6 {[%emt 0:00:05]} 3. d4 {[%emt 0:00:07]} exd4 {[%emt 0:00:06]} 4. Bc4 {[%emt 0:00:06]} Nf6 {[%emt 0:00:30]} 5. O-O {[%emt 0:00:42]} d6 {[%emt 0:05:57]} 6. Nxd4 {[%emt 0:04:25]} Ne5 {[%emt 0:03:37]} 7. Bb3 {[%emt 0:08:11]} Bd7 {[%emt 0:09:50]} 8. c3 {[%emt 0:03:44]} c5 {[%emt 0:04:43]} 9. Nf3 {[%emt 0:08:04]} Bc6 {[%emt 0:14:40]} 10. Nxe5 {[%emt 0:05:07]} dxe5 {[%emt 0:00:11]} 11. f3 {[%emt 0:00:20]} h6 {[%emt 0:06:30]} 12. Be3 {[%emt 0:02:30]} Qc7 {[%emt 0:05:22]} 13. c4 {[%emt 0:10:30]} a6 {[%emt 0:07:29]} 14. a4 {[%emt 0:10:33]} g5 {[%emt 0:00:59]} 15. h3 {[%emt 0:03:36]} Nh5 {[%emt 0:08:09]} 16. Nc3 {[%emt 0:03:00]} Nf4 {[%emt 0:06:57]} 17. Nd5 {[%emt 0:03:13]} Bxd5 {[%emt 0:04:08]} 18. exd5 {[%emt 0:05:23]} O-O-O {[%emt 0:03:11]} 19. Bc2 {[%emt 0:02:24]} a5 {[%emt 0:00:56]} 20. Bf5+ {[%emt 0:01:23]} Kb8 {[%emt 0:00:14]} 21. Ra3 {[%emt 0:01:55]} b6 {[%emt 0:06:05]} 22. Rb3 {[%emt 0:03:37]} Ka7 {[%emt 0:01:19]} 23. Rb5 {[%emt 0:03:51]} Rd6 {[%emt 0:05:58]} 24. b4 {[%emt 0:04:53]} axb4 {[%emt 0:00:29]} 25. a5 {[%emt 0:00:13]} Rf6 {[%emt 0:01:17]} 26. axb6+ {[%emt 0:00:44]} Rxb6 {[%emt 0:00:28]} 27. Qa4+ {[%emt 0:01:23]} Ra6 {[%emt 0:01:37]} 28. Qxa6+ {[%emt 0:00:14]} 1-0

[Event "DVM U12 2021-22"]
[Site "Naumburg"]
[Date "2022.03.26"]
[Round "3"]
[White "Wartenberg, Alexander"]
[Black "Marinin, Georgii"]
[Result "1/2-1/2"]
[ECO "B13"]
[WhiteElo "1639"]
[BlackElo "1293"]
[Annotator "NA"]
[PlyCount "90"]
[EventDate "2022.03.25"]
[EventType "team-tourn"]
[EventRounds "7"]
[EventCountry "GER"]
[SourceTitle "playchess.com"]
[Source "ChessBase"]
[SourceQuality "1"]
[TimeControl "40/5400+30:1800+30"]

1. e4 {[%emt 0:00:10]} c6 {[%emt 0:00:03]} 2. d4 {[%emt 0:00:30]} d5 {[%emt 0:00:11]} 3. exd5 {[%emt 0:00:11]} cxd5 {[%emt 0:00:06]} 4. Nf3 {[%emt 0:00:38]} Nc6 {[%emt 0:00:07]} 5. Nc3 {[%emt 0:00:29]} Bg4 {[%emt 0:00:05]} 6. Be2 {[%emt 0:00:33]} Nf6 {[%emt 0:00:06]} 7. O-O {[%emt 0:01:33]} e6 {[%emt 0:00:29]} 8. Bg5 {[%emt 0:00:34]} Be7 {[%emt 0:00:21]} 9. Ne5 {[%emt 0:02:00]} Bxe2 {[%emt 0:02:26]} 10. Nxe2 {[%emt 0:00:31]} Nxe5 {[%emt 0:01:33]} 11. dxe5 {[%emt 0:00:17]} Nd7 {[%emt 0:00:07]} 12. Bxe7 {[%emt 0:03:14]} Qxe7 {[%emt 0:00:06]} 13. f4 {[%emt 0:02:59]} Rc8 {[%emt 0:00:25]} 14. c3 {[%emt 0:02:05]} Nb6 {[%emt 0:01:04]} 15. Nd4 Nc4 {[%emt 0:03:42]} 16. Qe2 {[%emt 0:03:30]} a6 {[%emt 0:08:35]} 17. Rae1 {[%emt 0:01:59]} h5 {[%emt 0:09:31]} 18. f5 {[%emt 0:00:25]} h4 {[%emt 0:01:20]} 19. Qg4 {[%emt 0:01:58]} Nxb2 {[%emt 0:02:50]} 20. Qxg7 {[%emt 0:04:20]} Qf8 {[%emt 0:03:00]} 21. Qxf8+ {[%emt 0:01:56]} Rxf8 {[%emt 0:00:02]} 22. fxe6 {[%emt 0:00:23]} fxe6 {[%emt 0:00:10]} 23. Rxf8+ {[%emt 0:02:06]} Kxf8 {[%emt 0:00:02]} 24. Nxe6+ {[%emt 0:00:17]} Ke7 {[%emt 0:00:04]} 25. Nd4 {[%emt 0:00:10]} Rxc3 {[%emt 0:00:49]} 26. e6 {[%emt 0:01:04]} Nd3 {[%emt 0:03:42]} 27. Nf5+ {[%emt 0:00:35]} Ke8 {[%emt 0:00:47]} 28. Rf1 {[%emt 0:03:10]} Rc1 {[%emt 0:00:33]} 29. Nxh4 {[%emt 0:01:16]} Rxf1+ {[%emt 0:00:11]} 30. Kxf1 {[%emt 0:00:14]} Ke7 {[%emt 0:00:05]} 31. a3 {[%emt 0:01:07]} Kxe6 {[%emt 0:00:06]} 32. Ke2 {[%emt 0:00:29]} Nf4+ {[%emt 0:00:47]} 33. Ke3 {[%emt 0:00:49]} Ke5 {[%emt 0:00:58]} 34. g3 {[%emt 0:01:04]} d4+ {[%emt 0:00:11]} 35. Kd2 {[%emt 0:03:45]} Nh3 {[%emt 0:00:32]} 36. Ng6+ {[%emt 0:09:04]} Kd5 {[%emt 0:02:06]} 37. Nf4+ {[%emt 0:11:00]} Nxf4 {[%emt 0:00:20]} 38. gxf4 {[%emt 0:00:06]} Ke4 {[%emt 0:00:05]} 39. h4 {[%emt 0:00:37]} Kxf4 {[%emt 0:00:05]} 40. Kd3 {[%emt 0:00:10]} b5 {[%emt 0:00:27]} 41. Kxd4 {[%emt 0:30:27]} a5 {[%emt 0:30:16]} 42. h5 {[%emt 0:02:17]} Kg5 {[%emt 0:00:07]} 43. Kc5 {[%emt 0:00:14]} b4 {[%emt 0:00:09]} 44. axb4 {[%emt 0:00:15]} axb4 {[%emt 0:00:02]} 45. Kxb4 Kxh5 1/2-1/2

[Event "DVM U12 2021-22"]
[Site "Naumburg"]
[Date "2022.03.26"]
[Round "3"]
[White "Xue, Luka"]
[Black "Zobel, Christian"]
[Result "1/2-1/2"]
[ECO "C42"]
[WhiteElo "1610"]
[BlackElo "1547"]
[Annotator "NA"]
[PlyCount "86"]
[EventDate "2022.03.25"]
[EventType "team-tourn"]
[EventRounds "7"]
[EventCountry "GER"]
[SourceTitle "playchess.com"]
[Source "ChessBase"]
[SourceQuality "1"]
[TimeControl "40/5400+30:1800+30"]

1. e4 {[%emt 0:00:03]} e5 {[%emt 0:00:15]} 2. Nf3 {[%emt 0:00:07]} Nf6 {[%emt 0:00:18]} 3. Nxe5 {[%emt 0:00:15]} d6 {[%emt 0:00:07]} 4. Nf3 {[%emt 0:00:05]} Nxe4 {[%emt 0:00:05]} 5. d3 {[%emt 0:00:09]} Nf6 {[%emt 0:00:48]} 6. d4 {[%emt 0:00:23]} Bg4 {[%emt 0:02:14]} 7. c4 {[%emt 0:01:16]} Be7 {[%emt 0:02:44]} 8. Nc3 {[%emt 0:01:08]} O-O {[%emt 0:03:24]} 9. h3 {[%emt 0:05:45]} Bh5 {[%emt 0:03:37]} 10. Be2 {[%emt 0:00:33]} d5 {[%emt 0:03:11]} 11. Be3 {[%emt 0:10:17]} dxc4 {[%emt 0:05:15]} 12. Bxc4 {[%emt 0:00:27]} Nc6 {[%emt 0:00:51]} 13. O-O {[%emt 0:01:34]} Qd7 {[%emt 0:05:40]} 14. d5 {[%emt 0:18:13]} Bxf3 {[%emt 0:02:54]} 15. Qxf3 {[%emt 0:05:51]} Ne5 {[%emt 0:00:09]} 16. Qe2 {[%emt 0:00:40]} Nxc4 {[%emt 0:04:20]} 17. Qxc4 {[%emt 0:00:26]} Bd6 {[%emt 0:02:33]} 18. Rad1 {[%emt 0:07:28]} a6 {[%emt 0:07:32]} 19. Qh4 {[%emt 0:04:08]} Be5 {[%emt 0:02:36]} 20. Rfe1 {[%emt 0:04:36]} Rfe8 {[%emt 0:04:46]} 21. f4 {[%emt 0:04:51]} Bxc3 {[%emt 0:03:49]} 22. bxc3 {[%emt 0:00:38]} Re4 {[%emt 0:05:10]} 23. Bd4 {[%emt 0:02:18]} Rxe1+ {[%emt 0:01:43]} 24. Qxe1 {[%emt 0:07:30]} Re8 {[%emt 0:06:31]} 25. Qg3 {[%emt 0:01:17]} Qxd5 {[%emt 0:00:47]} 26. Qxg7+ {[%emt 0:06:20]} Kxg7 {[%emt 0:00:08]} 27. Bxf6+ {[%emt 0:00:06]} Kxf6 {[%emt 0:00:04]} 28. Rxd5 {[%emt 0:00:07]} Ke6 {[%emt 0:01:36]} 29. Re5+ {[%emt 0:00:20]} Kd7 {[%emt 0:00:08]} 30. Rxe8 {[%emt 0:00:08]} Kxe8 {[%emt 0:00:04]} 31. Kf2 {[%emt 0:00:16]} Ke7 {[%emt 0:00:37]} 32. Ke3 {[%emt 0:00:28]} f5 {[%emt 0:01:33]} 33. g4 {[%emt 0:01:26]} Ke6 {[%emt 0:01:21]} 34. Kd4 {[%emt 0:01:05]} b6 {[%emt 0:01:10]} 35. a4 {[%emt 0:01:28]} c5+ {[%emt 0:05:20]} 36. Kc4 {[%emt 0:00:20]} fxg4 {[%emt 0:00:26]} 37. hxg4 {[%emt 0:00:06]} Kd6 {[%emt 0:00:20]} 38. g5 {[%emt 0:01:57]} Kc6 {[%emt 0:00:38]} 39. f5 {[%emt 0:01:32]} b5+ {[%emt 0:00:08]} 40. Kb3 {[%emt 0:04:18]} Kd6 {[%emt 0:00:48]} 41. axb5 {[%emt 0:35:02]} axb5 {[%emt 0:30:19]} 42. Kc2 {[%emt 0:00:41]} Ke5 {[%emt 0:00:05]} 43. f6 {[%emt 0:00:54]} Ke6 {[%emt 0:00:06]} 1/2-1/2

[Event "DVM U12 2021-22"]
[Site "Naumburg"]
[Date "2022.03.26"]
[Round "3"]
[White "Koberstein, Simon"]
[Black "Haubold, Sebastian Marcel"]
[Result "0-1"]
[ECO "C54"]
[WhiteElo "1462"]
[BlackElo "1869"]
[Annotator "NA"]
[PlyCount "52"]
[EventDate "2022.03.25"]
[EventType "team-tourn"]
[EventRounds "7"]
[EventCountry "GER"]
[SourceTitle "playchess.com"]
[Source "ChessBase"]
[SourceQuality "1"]
[TimeControl "40/5400+30:1800+30"]

1. e4 {[%emt 0:00:01]} e5 {[%emt 0:00:09]} 2. Nf3 {[%emt 0:00:05]} Nc6 {[%emt 0:00:04]} 3. Bc4 {[%emt 0:00:06]} Bc5 {[%emt 0:00:05]} 4. c3 {[%emt 0:00:05]} Nf6 {[%emt 0:00:04]} 5. d3 {[%emt 0:00:08]} d6 {[%emt 0:00:05]} 6. h3 {[%emt 0:00:20]} a6 {[%emt 0:00:06]} 7. b4 {[%emt 0:00:09]} Ba7 {[%emt 0:00:04]} 8. a4 {[%emt 0:00:18]} h6 {[%emt 0:00:30]} 9. O-O {[%emt 0:00:11]} Rg8 {[%emt 0:02:42]} 10. Nbd2 {[%emt 0:00:47]} g5 {[%emt 0:00:14]} 11. Nh2 {[%emt 0:02:10]} g4 {[%emt 0:02:56]} 12. hxg4 {[%emt 0:00:34]} Nxg4 {[%emt 0:02:03]} 13. Ndf3 {[%emt 0:02:04]} Qf6 {[%emt 0:03:17]} 14. Qe2 {[%emt 0:03:44]} Qg7 {[%emt 0:03:26]} 15. Nh4 {[%emt 0:02:03]} Ne7 {[%emt 0:17:53]} 16. Be3 {[%emt 0:02:41]} Ng6 {[%emt 0:03:12]} 17. Nxg6 {[%emt 0:03:07]} Qxg6 {[%emt 0:00:50]} 18. g3 {[%emt 0:00:48]} Qh5 {[%emt 0:11:37]} 19. Nxg4 {[%emt 0:01:26]} Bxg4 {[%emt 0:00:02]} 20. f3 {[%emt 0:00:19]} Bh3 {[%emt 0:00:02]} 21. Bxa7 {[%emt 0:01:27]} Rxg3+ {[%emt 0:00:47]} 22. Kf2 {[%emt 0:00:37]} Rg2+ {[%emt 0:00:01]} 23. Ke1 {[%emt 0:00:21]} Rxe2+ {[%emt 0:00:03]} 24. Kxe2 {[%emt 0:00:04]} Bxf1+ {[%emt 0:00:03]} 25. Kxf1 {[%emt 0:00:08]} Rxa7 {[%emt 0:00:06]} 26. Ke2 {[%emt 0:00:08]} Ke7 {[%emt 0:00:13]} 0-1

[Event "DVM U12 2021-22"]
[Site "Naumburg"]
[Date "2022.03.26"]
[Round "3"]
[White "Stettner, Oskar"]
[Black "Moldovan, Tudor"]
[Result "1-0"]
[ECO "B06"]
[WhiteElo "1446"]
[BlackElo "1219"]
[Annotator "NA"]
[PlyCount "127"]
[EventDate "2022.03.25"]
[EventType "team-tourn"]
[EventRounds "7"]
[EventCountry "GER"]
[SourceTitle "playchess.com"]
[Source "ChessBase"]
[SourceQuality "1"]
[TimeControl "40/5400+30:1800+30"]

1. e4 {[%emt 0:00:01]} g6 {[%emt 0:00:11]} 2. d4 {[%emt 0:01:11]} Bg7 {[%emt 0:00:24]} 3. Nf3 {[%emt 0:00:26]} a6 {[%emt 0:00:31]} 4. a4 {[%emt 0:01:28]} b6 {[%emt 0:00:25]} 5. Nc3 {[%emt 0:00:31]} Bb7 {[%emt 0:01:13]} 6. Bd3 {[%emt 0:06:38]} d6 {[%emt 0:01:50]} 7. O-O {[%emt 0:01:59]} Nd7 {[%emt 0:01:26]} 8. Be3 {[%emt 0:01:27]} Ngf6 {[%emt 0:01:11]} 9. h3 {[%emt 0:00:54]} O-O {[%emt 0:01:02]} 10. Qd2 {[%emt 0:00:35]} e5 {[%emt 0:02:11]} 11. dxe5 {[%emt 0:03:09]} Nxe5 {[%emt 0:02:15]} 12. Nxe5 {[%emt 0:00:16]} dxe5 {[%emt 0:00:22]} 13. Bh6 {[%emt 0:02:28]} Qe7 {[%emt 0:02:23]} 14. Bxg7 {[%emt 0:01:41]} Kxg7 {[%emt 0:00:33]} 15. Rad1 {[%emt 0:02:40]} Rad8 {[%emt 0:01:36]} 16. Qe2 {[%emt 0:00:22]} a5 {[%emt 0:02:22]} 17. Rfe1 {[%emt 0:04:26]} Nh5 {[%emt 0:06:07]} 18. g3 {[%emt 0:10:29]} Qe6 {[%emt 0:07:00]} 19. h4 {[%emt 0:00:51]} Qc6 {[%emt 0:04:17]} 20. Bb5 {[%emt 0:04:37]} Qc5 {[%emt 0:05:15]} 21. Qc4 {[%emt 0:02:27]} Qxc4 {[%emt 0:13:35]} 22. Bxc4 {[%emt 0:00:08]} Nf6 {[%emt 0:01:38]} 23. f3 {[%emt 0:03:58]} Nh5 {[%emt 0:07:24]} 24. Kf2 {[%emt 0:03:46]} c6 {[%emt 0:02:02]} 25. Rxd8 {[%emt 0:03:08]} Rxd8 {[%emt 0:00:55]} 26. Rd1 {[%emt 0:00:08]} Rxd1 {[%emt 0:00:45]} 27. Nxd1 {[%emt 0:00:25]} f5 {[%emt 0:01:10]} 28. exf5 {[%emt 0:04:54]} gxf5 {[%emt 0:00:47]} 29. Ne3 {[%emt 0:00:48]} f4 {[%emt 0:05:32]} 30. Nf5+ {[%emt 0:01:00]} Kf6 {[%emt 0:02:01]} 31. g4 {[%emt 0:00:22]} b5 {[%emt 0:06:39]} 32. axb5 {[%emt 0:05:53]} cxb5 {[%emt 0:00:23]} 33. Bxb5 {[%emt 0:00:16]} Ba8 {[%emt 0:02:55]} 34. Bd3 {[%emt 0:01:08]} Ng7 {[%emt 0:00:44]} 35. Nd6 {[%emt 0:04:59]} h6 {[%emt 0:01:54]} 36. Be4 {[%emt 0:01:18]} Bxe4 {[%emt 0:00:34]} 37. Nxe4+ {[%emt 0:00:05]} Ke6 {[%emt 0:00:36]} 38. c4 {[%emt 0:00:57]} Ne8 {[%emt 0:00:19]} 39. Nc5+ {[%emt 0:01:03]} Kd6 {[%emt 0:00:19]} 40. Nb7+ {[%emt 0:00:09]} Kc6 {[%emt 0:00:18]} 41. Nxa5+ {[%emt 0:30:17]} Kc5 {[%emt 0:30:09]} 42. b3 {[%emt 0:01:16]} Nd6 {[%emt 0:01:11]} 43. g5 {[%emt 0:00:26]} hxg5 {[%emt 0:00:44]} 44. hxg5 {[%emt 0:00:08]} Nf5 {[%emt 0:00:48]} 45. g6 {[%emt 0:01:33]} Kb6 {[%emt 0:00:43]} 46. b4 {[%emt 0:01:23]} Ng7 {[%emt 0:00:34]} 47. c5+ {[%emt 0:00:52]} Kb5 {[%emt 0:00:31]} 48. c6 Kb6 49. b5 {[%emt 0:03:00]} Ne6 {[%emt 0:01:48]} 50. Nc4+ {[%emt 0:00:56]} Kc7 {[%emt 0:00:21]} 51. Nxe5 {[%emt 0:00:56]} Kb6 {[%emt 0:00:32]} 52. Nd3 {[%emt 0:00:38]} Ng7 {[%emt 0:01:13]} 53. Nxf4 {[%emt 0:00:20]} Kc7 {[%emt 0:00:18]} 54. Nd5+ {[%emt 0:00:17]} Kc8 {[%emt 0:01:09]} 55. b6 {[%emt 0:00:29]} Kb8 {[%emt 0:00:17]} 56. c7+ {[%emt 0:00:13]} Kb7 {[%emt 0:00:33]} 57. Ne7 {[%emt 0:00:12]} Kxb6 {[%emt 0:00:08]} 58. c8=Q {[%emt 0:00:12]} Ne6 {[%emt 0:00:35]} 59. Qxe6+ {[%emt 0:00:15]} Kc5 {[%emt 0:00:14]} 60. Qd5+ {[%emt 0:00:10]} Kb6 {[%emt 0:00:22]} 61. Qc6+ {[%emt 0:00:15]} Ka7 {[%emt 0:00:30]} 62. Nd5 {[%emt 0:00:26]} Kb8 {[%emt 0:00:48]} 63. Qc7+ {[%emt 0:00:05]} Ka8 {[%emt 0:00:03]} 64. Nb6# 1-0

[Event "DVM U12 2021-22"]
[Site "Naumburg"]
[Date "2022.03.26"]
[Round "3"]
[White "Middendorf, Sven-Jonas"]
[Black "Rudolph, Konrad"]
[Result "1-0"]
[ECO "B04"]
[WhiteElo "1424"]
[BlackElo "1321"]
[Annotator "NA"]
[PlyCount "49"]
[EventDate "2022.03.25"]
[EventType "team-tourn"]
[EventRounds "7"]
[EventCountry "GER"]
[SourceTitle "playchess.com"]
[Source "ChessBase"]
[SourceQuality "1"]
[TimeControl "40/5400+30:1800+30"]

1. e4 {[%emt 0:00:03]} Nf6 {[%emt 0:00:05]} 2. e5 {[%emt 0:00:07]} Nd5 {[%emt 0:00:10]} 3. d4 {[%emt 0:00:05]} d6 {[%emt 0:00:22]} 4. Nf3 {[%emt 0:00:14]} g6 {[%emt 0:00:57]} 5. Bc4 {[%emt 0:00:25]} Nb6 {[%emt 0:01:00]} 6. Bb3 {[%emt 0:00:12]} Bg7 {[%emt 0:00:38]} 7. Ng5 {[%emt 0:06:42]} O-O {[%emt 0:01:09]} 8. e6 {[%emt 0:00:47]} f6 {[%emt 0:08:19]} 9. Nf7 {[%emt 0:03:16]} Qe8 {[%emt 0:00:58]} 10. d5 {[%emt 0:01:09]} a5 {[%emt 0:02:28]} 11. a4 {[%emt 0:02:06]} c6 {[%emt 0:02:09]} 12. c4 {[%emt 0:00:36]} f5 {[%emt 0:02:50]} 13. Be3 {[%emt 0:01:04]} Ra6 {[%emt 0:00:59]} 14. Bd4 {[%emt 0:00:27]} Bf6 {[%emt 0:02:50]} 15. Qd2 {[%emt 0:09:16]} Kg7 {[%emt 0:07:19]} 16. Qh6+ {[%emt 0:02:09]} Kg8 {[%emt 0:02:12]} 17. Ng5 {[%emt 0:00:26]} Rf7 {[%emt 0:06:24]} 18. exf7+ {[%emt 0:00:32]} Qxf7 {[%emt 0:01:10]} 19. Nxf7 {[%emt 0:00:11]} Bxd4 20. Ng5 {[%emt 0:00:22]} Bg7 {[%emt 0:05:06]} 21. Qxh7+ {[%emt 0:00:32]} Kf8 {[%emt 0:00:59]} 22. Qxg6 {[%emt 0:00:25]} Kg8 {[%emt 0:01:38]} 23. Qe8+ {[%emt 0:00:04]} Bf8 {[%emt 0:00:49]} 24. Qf7+ {[%emt 0:00:04]} Kh8 {[%emt 0:01:20]} 25. Qxf8# {[%emt 0:00:04]} 1-0

[Event "DVM U12 2021-22"]
[Site "Naumburg"]
[Date "2022.03.26"]
[Round "3"]
[White "Ruddat, Jarne"]
[Black "Teng, David"]
[Result "1-0"]
[ECO "B23"]
[WhiteElo "1419"]
[BlackElo "1334"]
[Annotator "NA"]
[PlyCount "81"]
[EventDate "2022.03.25"]
[EventType "team-tourn"]
[EventRounds "7"]
[EventCountry "GER"]
[SourceTitle "playchess.com"]
[Source "ChessBase"]
[SourceQuality "1"]
[TimeControl "40/5400+30:1800+30"]

1. e4 {[%emt 0:00:03]} c5 {[%emt 0:00:11]} 2. Nc3 {[%emt 0:00:04]} e6 {[%emt 0:00:48]} 3. Nge2 {[%emt 0:00:05]} a6 {[%emt 0:01:59]} 4. g3 {[%emt 0:00:04]} Nc6 {[%emt 0:01:24]} 5. Bg2 {[%emt 0:00:07]} Nf6 {[%emt 0:01:43]} 6. O-O {[%emt 0:00:24]} Be7 {[%emt 0:00:49]} 7. d3 {[%emt 0:01:43]} O-O {[%emt 0:01:51]} 8. Bf4 {[%emt 0:01:58]} d6 {[%emt 0:02:14]} 9. Kh1 {[%emt 0:13:41]} e5 {[%emt 0:03:13]} 10. Be3 {[%emt 0:04:08]} b5 {[%emt 0:02:27]} 11. f4 {[%emt 0:03:24]} Ng4 {[%emt 0:05:46]} 12. Bd2 {[%emt 0:01:46]} Nd4 {[%emt 0:08:11]} 13. Nxd4 {[%emt 0:01:36]} cxd4 {[%emt 0:02:20]} 14. Nd5 {[%emt 0:00:54]} Nf6 {[%emt 0:04:15]} 15. fxe5 {[%emt 0:01:04]} dxe5 {[%emt 0:01:54]} 16. Nxe7+ {[%emt 0:01:07]} Qxe7 {[%emt 0:00:27]} 17. Bg5 {[%emt 0:00:33]} Kh8 {[%emt 0:11:26]} 18. Qd2 {[%emt 0:02:33]} Qe6 {[%emt 0:07:20]} 19. Bxf6 {[%emt 0:00:49]} gxf6 {[%emt 0:02:26]} 20. Qh6 {[%emt 0:00:24]} Rg8 {[%emt 0:03:09]} 21. Rxf6 {[%emt 0:03:21]} Qe7 {[%emt 0:02:52]} 22. Raf1 {[%emt 0:01:12]} Be6 {[%emt 0:02:30]} 23. Bh3 {[%emt 0:01:06]} Rg6 {[%emt 0:02:57]} 24. Rxg6 {[%emt 0:00:48]} fxg6 {[%emt 0:00:21]} 25. Bxe6 {[%emt 0:02:22]} Qxe6 {[%emt 0:02:02]} 26. Rf8+ {[%emt 0:02:13]} Rxf8 {[%emt 0:00:10]} 27. Qxf8+ {[%emt 0:00:05]} Qg8 {[%emt 0:00:10]} 28. Qxg8+ {[%emt 0:00:32]} Kxg8 {[%emt 0:00:08]} 29. c3 {[%emt 0:00:13]} dxc3 {[%emt 0:01:15]} 30. bxc3 {[%emt 0:00:11]} a5 {[%emt 0:00:53]} 31. Kg2 {[%emt 0:00:16]} b4 {[%emt 0:02:56]} 32. cxb4 {[%emt 0:00:08]} axb4 {[%emt 0:00:06]} 33. Kf3 {[%emt 0:00:04]} Kf7 {[%emt 0:01:10]} 34. Ke3 {[%emt 0:00:13]} Ke6 {[%emt 0:02:54]} 35. d4 {[%emt 0:00:05]} exd4+ {[%emt 0:01:57]} 36. Kxd4 {[%emt 0:00:06]} Kd6 {[%emt 0:00:23]} 37. g4 {[%emt 0:00:47]} g5 {[%emt 0:00:50]} 38. h3 {[%emt 0:00:16]} h6 {[%emt 0:00:18]} 39. e5+ {[%emt 0:00:07]} Ke6 {[%emt 0:01:17]} 40. Ke4 {[%emt 0:00:22]} Ke7 {[%emt 0:01:53]} 41. Kf5 {[%emt 0:32:20]} 1-0

[Event "DVM U12 2021-22"]
[Site "Naumburg"]
[Date "2022.03.26"]
[Round "3"]
[White "Rudolph, Simon"]
[Black "Fadeev, Justin Michael"]
[Result "0-1"]
[ECO "B33"]
[WhiteElo "1403"]
[BlackElo "1327"]
[Annotator "NA"]
[PlyCount "72"]
[EventDate "2022.03.25"]
[EventType "team-tourn"]
[EventRounds "7"]
[EventCountry "GER"]
[SourceTitle "playchess.com"]
[Source "ChessBase"]
[SourceQuality "1"]
[TimeControl "40/5400+30:1800+30"]

1. e4 {[%emt 0:00:03]} c5 {[%emt 0:00:08]} 2. Nf3 {[%emt 0:00:04]} Nc6 {[%emt 0:00:13]} 3. d4 {[%emt 0:00:08]} cxd4 {[%emt 0:00:22]} 4. Nxd4 {[%emt 0:00:07]} Nf6 {[%emt 0:00:18]} 5. Nc3 {[%emt 0:00:18]} g6 {[%emt 0:00:18]} 6. Be3 {[%emt 0:00:08]} Bg7 {[%emt 0:00:28]} 7. f3 {[%emt 0:00:18]} O-O {[%emt 0:00:36]} 8. Qd2 {[%emt 0:00:20]} d5 {[%emt 0:01:15]} 9. Bd3 {[%emt 0:01:59]} e5 {[%emt 0:24:39]} 10. Nxc6 {[%emt 0:01:14]} bxc6 {[%emt 0:00:06]} 11. Bf2 {[%emt 0:06:19]} d4 {[%emt 0:02:19]} 12. Ne2 {[%emt 0:00:48]} Be6 {[%emt 0:00:52]} 13. O-O {[%emt 0:02:16]} c5 {[%emt 0:02:26]} 14. c3 {[%emt 0:00:48]} Qd7 15. cxd4 {[%emt 0:02:54]} cxd4 {[%emt 0:05:55]} 16. Ba6 {[%emt 0:00:55]} Qd6 {[%emt 0:03:31]} 17. Qd3 {[%emt 0:02:53]} Rab8 {[%emt 0:01:15]} 18. b3 {[%emt 0:00:45]} Nd7 {[%emt 0:01:54]} 19. Bc4 {[%emt 0:03:46]} Nc5 {[%emt 0:01:39]} 20. Qd2 {[%emt 0:01:59]} Bxc4 {[%emt 0:01:45]} 21. bxc4 {[%emt 0:00:23]} Qa6 {[%emt 0:03:37]} 22. Rfc1 {[%emt 0:02:45]} Rb7 {[%emt 0:01:55]} 23. f4 {[%emt 0:04:00]} Nxe4 {[%emt 0:01:22]} 24. Qd3 {[%emt 0:01:15]} Nxf2 {[%emt 0:00:58]} 25. Kxf2 {[%emt 0:00:42]} Qf6 {[%emt 0:02:26]} 26. g3 {[%emt 0:00:45]} exf4 {[%emt 0:02:31]} 27. Qe4 {[%emt 0:01:47]} fxg3+ {[%emt 0:01:06]} 28. Kxg3 {[%emt 0:00:49]} Qe5+ {[%emt 0:03:21]} 29. Kf3 {[%emt 0:01:02]} Qxe4+ {[%emt 0:01:42]} 30. Kxe4 {[%emt 0:00:23]} d3 {[%emt 0:01:25]} 31. Nc3 {[%emt 0:00:39]} d2 {[%emt 0:00:10]} 32. Rc2 {[%emt 0:00:15]} Re8+ {[%emt 0:00:18]} 33. Kf3 {[%emt 0:00:10]} Re1 {[%emt 0:00:10]} 34. Rd1 {[%emt 0:00:57]} Bxc3 {[%emt 0:00:32]} 35. Rxc3 {[%emt 0:01:36]} Rxd1 {[%emt 0:00:17]} 36. Ke2 {[%emt 0:00:13]} Rc1 {[%emt 0:00:09]} 0-1